[Event "SVK ECo-C Extraliga 2018-19"]
[Site "Slovakia"]
[Date "2019.02.16"]
[Round "5"]
[White "Veres, Andrej"]
[Black "Holtman, Teodor"]
[Result "0-1"]
[ECO "C04"]
[WhiteElo "2247"]
[BlackElo "2287"]
[Annotator "NA"]
[PlyCount "106"]
[EventDate "2018.11.10"]
[EventType "team-tourn"]
[EventCountry "SVK"]
[SourceTitle "playchess.com"]
[Source "ChessBase"]
[SourceQuality "1"]
[WhiteTeam "Dubnica"]
[BlackTeam "Snina"]
[TimeControl "40/5400+30:1800+30"]

1. e4 {[%emt 0:00:00]} e6 {[%emt 0:00:00]} 2. d4 {[%emt 0:00:29]} d5 {[%emt 0:00:00]} 3. Nd2 {[%emt 0:00:53]} Nc6 {[%emt 0:01:16]} 4. Ngf3 {[%emt 0:03:05]} Nf6 {[%emt 0:00:02]} 5. e5 {[%emt 0:10:16]} Nd7 {[%emt 0:00:04]} 6. Be2 {[%emt 0:08:45]} f6 {[%emt 0:00:03]} 7. exf6 {[%emt 0:01:52]} Qxf6 {[%emt 0:00:02]} 8. Nf1 {[%emt 0:02:03]} Bd6 {[%emt 0:00:07]} 9. Bg5 {[%emt 0:04:59]} Qf7 {[%emt 0:00:38]} 10. Ne3 {[%emt 0:08:40]} O-O {[%emt 0:00:10]} 11. O-O {[%emt 0:10:01]} b6 {[%emt 0:02:01]} 12. Bh4 {[%emt 0:07:40]} Bb7 {[%emt 0:00:55]} 13. Ng5 {[%emt 0:08:20]} Qf4 {[%emt 0:02:31]} 14. Nf3 {[%emt 0:08:08]} Rae8 {[%emt 0:06:31]} 15. c3 {[%emt 0:05:11]} Qh6 {[%emt 0:05:41]} 16. Bg3 {[%emt 0:02:52]} g6 {[%emt 0:08:15]} 17. Re1 {[%emt 0:02:01]} Nf6 {[%emt 0:02:41]} 18. Ne5 {[%emt 0:03:52]} Ne4 {[%emt 0:01:46]} 19. N5g4 {[%emt 0:02:50]} Qg7 {[%emt 0:00:49]} 20. Bxd6 {[%emt 0:00:44]} cxd6 {[%emt 0:02:15]} 21. f3 {[%emt 0:00:11]} Ng5 {[%emt 0:02:20]} 22. Qd2 {[%emt 0:00:09]} Nf7 {[%emt 0:01:30]} 23. Bb5 {[%emt 0:00:55]} a6 {[%emt 0:10:04]} 24. Ba4 {[%emt 0:01:23]} Rd8 {[%emt 0:01:27]} 25. Re2 {[%emt 0:00:10]} h5 {[%emt 0:08:58]} 26. Nf2 {[%emt 0:00:24]} Nh6 {[%emt 0:00:30]} 27. Rae1 {[%emt 0:01:30]} Nf7 {[%emt 0:09:50]} 28. Bc2 {[%emt 0:01:44]} Bc8 {[%emt 0:03:51]} 29. Nd3 {[%emt 0:02:44]} Nh6 {[%emt 0:00:34]} 30. Nf1 {[%emt 0:00:35]} Nf5 {[%emt 0:05:37]} 31. Qg5 {[%emt 0:01:20]} Qf6 {[%emt 0:04:19]} 32. Qxf6 {[%emt 0:00:20]} Rxf6 {[%emt 0:00:01]} 33. Ng3 {[%emt 0:00:57]} Ng7 {[%emt 0:05:00]} 34. f4 {[%emt 0:00:35]} a5 {[%emt 0:02:31]} 35. Nf1 {[%emt 0:01:09]} Ba6 {[%emt 0:00:07]} 36. g3 {[%emt 0:00:09]} Rc8 {[%emt 0:07:54]} 37. Nd2 {[%emt 0:00:30]} Nxd4 {[%emt 0:00:54]} 38. cxd4 {[%emt 0:00:51]} Rxc2 {[%emt 0:00:01]} 39. Ne4 {[%emt 0:00:38]} dxe4 {[%emt 0:03:04]} 40. Rxc2 {[%emt 0:00:04]} Bxd3 {[%emt 0:02:16]} 41. Rc6 {[%emt 0:30:18]} Nf5 {[%emt 0:31:09]} 42. Rxb6 {[%emt 0:00:00]} Nxd4 {[%emt 0:00:00]} 43. Rd1 {[%emt 0:00:00]} d5 {[%emt 0:00:00]} 44. b4 {[%emt 0:00:00]} axb4 {[%emt 0:00:00]} 45. Rxb4 {[%emt 0:00:00]} e5 {[%emt 0:00:00]} 46. fxe5 {[%emt 0:00:00]} Nf3+ {[%emt 0:00:00]} 47. Kg2 {[%emt 0:00:00]} Nxe5 {[%emt 0:00:00]} 48. Rd4 {[%emt 0:00:00]} Ng4 {[%emt 0:00:00]} 49. R1xd3 {[%emt 0:00:00]} exd3 {[%emt 0:00:00]} 50. Rxd3 {[%emt 0:00:00]} Rf2+ {[%emt 0:00:00]} 51. Kg1 {[%emt 0:00:00]} Rxh2 {[%emt 0:00:00]} 52. Rxd5 {[%emt 0:00:00]} Rxa2 {[%emt 0:00:00]} 53. Rd4 {[%emt 0:00:00]} Kg7 {[%emt 0:00:00]} 0-1

[Event "SVK ECo-C Extraliga 2018-19"]
[Site "Slovakia"]
[Date "2019.02.16"]
[Round "5"]
[White "Molnar, Erno"]
[Black "Jablonicky, Martin"]
[Result "1/2-1/2"]
[ECO "B94"]
[WhiteElo "2245"]
[BlackElo "2308"]
[Annotator "NA"]
[PlyCount "63"]
[EventDate "2018.11.10"]
[EventType "team-tourn"]
[EventCountry "SVK"]
[SourceTitle "playchess.com"]
[Source "ChessBase"]
[SourceQuality "1"]
[WhiteTeam "Komarno"]
[BlackTeam "Osuske"]
[TimeControl "40/5400+30:1800+30"]

1. e4 {[%emt 0:00:00]} c5 {[%emt 0:00:00]} 2. Nf3 {[%emt 0:00:00]} d6 {[%emt 0:00:22]} 3. d4 {[%emt 0:00:00]} cxd4 {[%emt 0:00:04]} 4. Nxd4 {[%emt 0:00:00]} Nf6 {[%emt 0:00:05]} 5. Nc3 {[%emt 0:00:00]} a6 {[%emt 0:00:44]} 6. Bg5 {[%emt 0:00:03]} Nbd7 {[%emt 0:00:39]} 7. Bc4 {[%emt 0:00:09]} e6 {[%emt 0:05:35]} 8. O-O {[%emt 0:02:28]} Qa5 {[%emt 0:08:21]} 9. Qd2 {[%emt 0:01:50]} Be7 {[%emt 0:04:14]} 10. Rae1 {[%emt 0:19:13]} h6 {[%emt 0:08:08]} 11. Bh4 {[%emt 0:06:58]} O-O {[%emt 0:02:52]} 12. Re2 {[%emt 0:12:23]} Kh8 {[%emt 0:09:39]} 13. Kh1 {[%emt 0:14:31]} Nc5 {[%emt 0:14:29]} 14. Nb3 {[%emt 0:16:47]} Nxb3 {[%emt 0:07:33]} 15. Bxb3 {[%emt 0:00:56]} d5 {[%emt 0:09:36]} 16. exd5 {[%emt 0:07:49]} Nxd5 {[%emt 0:03:22]} 17. Bxe7 {[%emt 0:00:24]} Nxe7 {[%emt 0:00:05]} 18. Ne4 {[%emt 0:00:14]} Qc7 {[%emt 0:03:41]} 19. Qd6 {[%emt 0:02:21]} Qxd6 {[%emt 0:04:37]} 20. Nxd6 {[%emt 0:00:03]} Kg8 {[%emt 0:03:47]} 21. Rd1 {[%emt 0:00:57]} Rd8 {[%emt 0:00:43]} 22. Red2 {[%emt 0:01:51]} Kf8 {[%emt 0:00:09]} 23. Kg1 {[%emt 0:02:34]} b6 {[%emt 0:03:19]} 24. c3 {[%emt 0:01:00]} a5 {[%emt 0:02:34]} 25. Kf1 {[%emt 0:07:16]} Ba6+ {[%emt 0:00:12]} 26. Ke1 {[%emt 0:00:06]} Nc8 {[%emt 0:06:37]} 27. a4 {[%emt 0:01:46]} Nxd6 {[%emt 0:01:18]} 28. Rxd6 {[%emt 0:00:01]} Rxd6 {[%emt 0:00:06]} 29. Rxd6 {[%emt 0:00:02]} Rb8 {[%emt 0:00:03]} 30. Rc6 {[%emt 0:02:38]} Ke8 {[%emt 0:01:16]} 31. Rc7 {[%emt 0:00:28]} Rb7 {[%emt 0:00:34]} 32. Rxb7 {[%emt 0:00:30]} 1/2-1/2

[Event "SVK ECo-C Extraliga 2018-19"]
[Site "Slovakia"]
[Date "2019.02.16"]
[Round "5"]
[White "Sepesi, Samuel"]
[Black "Bombek, Peter"]
[Result "1/2-1/2"]
[ECO "C03"]
[WhiteElo "2189"]
[BlackElo "2184"]
[Annotator "NA"]
[PlyCount "60"]
[EventDate "2018.11.10"]
[EventType "team-tourn"]
[EventCountry "SVK"]
[SourceTitle "playchess.com"]
[Source "ChessBase"]
[SourceQuality "1"]
[WhiteTeam "Snina"]
[BlackTeam "Dubnica"]
[TimeControl "40/5400+30:1800+30"]

1. e4 {[%emt 0:00:00]} e6 {[%emt 0:00:00]} 2. d4 {[%emt 0:00:00]} d5 {[%emt 0:00:00]} 3. Nd2 {[%emt 0:00:20]} a6 {[%emt 0:00:00]} 4. Ngf3 {[%emt 0:03:34]} c5 {[%emt 0:00:11]} 5. dxc5 {[%emt 0:01:22]} Bxc5 {[%emt 0:01:58]} 6. Bd3 {[%emt 0:00:28]} Nf6 {[%emt 0:04:27]} 7. Qe2 {[%emt 0:00:10]} Nc6 {[%emt 0:00:52]} 8. O-O {[%emt 0:04:17]} Qc7 {[%emt 0:02:55]} 9. e5 {[%emt 0:29:35]} Ng4 {[%emt 0:10:04]} 10. Nb3 {[%emt 0:00:28]} Ba7 {[%emt 0:02:32]} 11. Bf4 {[%emt 0:01:34]} f6 {[%emt 0:04:58]} 12. Rae1 {[%emt 0:03:58]} Bb8 {[%emt 0:06:43]} 13. c4 {[%emt 0:30:50]} dxc4 {[%emt 0:10:05]} 14. Bxc4 {[%emt 0:00:26]} Ngxe5 {[%emt 0:04:19]} 15. Nxe5 {[%emt 0:03:25]} Nxe5 {[%emt 0:01:59]} 16. Bxe5 {[%emt 0:02:15]} Qxe5 {[%emt 0:03:26]} 17. f4 {[%emt 0:04:46]} Qxe2 {[%emt 0:04:35]} 18. Rxe2 {[%emt 0:00:04]} e5 {[%emt 0:02:09]} 19. fxe5 {[%emt 0:03:28]} Bxe5 {[%emt 0:01:24]} 20. Nc5 {[%emt 0:00:55]} Bg4 {[%emt 0:12:40]} 21. Re4 {[%emt 0:00:56]} Bd7 {[%emt 0:02:00]} 22. Bd5 {[%emt 0:01:47]} Bc6 {[%emt 0:09:17]} 23. Bxc6+ {[%emt 0:00:13]} bxc6 {[%emt 0:00:01]} 24. Nd3 {[%emt 0:00:13]} O-O-O {[%emt 0:04:34]} 25. Nxe5 {[%emt 0:00:21]} fxe5 {[%emt 0:02:03]} 26. Rxe5 {[%emt 0:02:19]} Rd2 {[%emt 0:01:39]} 27. Rf7 {[%emt 0:03:01]} Rhd8 {[%emt 0:02:24]} 28. h4 {[%emt 0:00:54]} R8d7 {[%emt 0:00:56]} 29. Re8+ {[%emt 0:00:19]} Kc7 {[%emt 0:00:57]} 30. Ree7 {[%emt 0:00:03]} Rxe7 {[%emt 0:00:47]} 1/2-1/2

[Event "SVK ECo-C Extraliga 2018-19"]
[Site "Slovakia"]
[Date "2019.02.16"]
[Round "5"]
[White "Gasa, Patrik"]
[Black "Joba, Arpad"]
[Result "1/2-1/2"]
[ECO "E66"]
[WhiteElo "2186"]
[BlackElo "2009"]
[Annotator "NA"]
[PlyCount "56"]
[EventDate "2018.11.10"]
[EventType "team-tourn"]
[EventCountry "SVK"]
[SourceTitle "playchess.com"]
[Source "ChessBase"]
[SourceQuality "1"]
[WhiteTeam "Osuske"]
[BlackTeam "Komarno"]
[TimeControl "40/5400+30:1800+30"]

1. Nf3 {[%emt 0:00:00]} Nf6 {[%emt 0:00:00]} 2. c4 {[%emt 0:00:16]} g6 {[%emt 0:00:00]} 3. g3 {[%emt 0:00:07]} Bg7 {[%emt 0:00:00]} 4. Bg2 {[%emt 0:00:25]} O-O {[%emt 0:00:00]} 5. O-O {[%emt 0:00:05]} d6 {[%emt 0:00:01]} 6. d4 {[%emt 0:00:16]} c5 {[%emt 0:00:07]} 7. Nc3 {[%emt 0:02:34]} Nc6 {[%emt 0:00:06]} 8. d5 {[%emt 0:07:55]} Na5 {[%emt 0:00:13]} 9. Qd3 {[%emt 0:00:02]} a6 {[%emt 0:05:11]} 10. Nd2 {[%emt 0:04:45]} Ng4 {[%emt 0:19:53]} 11. e4 {[%emt 0:04:10]} b5 {[%emt 0:01:18]} 12. cxb5 {[%emt 0:07:40]} axb5 {[%emt 0:02:02]} 13. Nxb5 {[%emt 0:01:11]} Ba6 {[%emt 0:00:59]} 14. a4 {[%emt 0:04:47]} Qb6 {[%emt 0:06:31]} 15. Rb1 {[%emt 0:05:42]} Ne5 {[%emt 0:13:49]} 16. Qe2 {[%emt 0:01:31]} Bxb5 {[%emt 0:12:38]} 17. Qxb5 {[%emt 0:02:58]} Qxb5 {[%emt 0:00:07]} 18. axb5 {[%emt 0:00:05]} Nd3 {[%emt 0:00:07]} 19. Bf3 {[%emt 0:06:54]} Rfb8 {[%emt 0:06:55]} 20. Be2 {[%emt 0:01:39]} Nb4 {[%emt 0:00:26]} 21. Nc4 {[%emt 0:01:34]} Nb3 {[%emt 0:01:55]} 22. Be3 {[%emt 0:09:18]} Nc2 {[%emt 0:01:24]} 23. Bd3 {[%emt 0:19:06]} Nb4 {[%emt 0:01:57]} 24. Be2 {[%emt 0:01:44]} Nc2 {[%emt 0:07:50]} 25. b6 {[%emt 0:05:38]} Nxe3 {[%emt 0:03:53]} 26. fxe3 {[%emt 0:00:02]} Ra4 {[%emt 0:00:42]} 27. Rfd1 {[%emt 0:01:04]} Rb4 {[%emt 0:05:47]} 28. Kf2 {[%emt 0:06:43]} Bf6 {[%emt 0:03:32]} 1/2-1/2

[Event "SVK ECo-C Extraliga 2018-19"]
[Site "Slovakia"]
[Date "2019.02.16"]
[Round "5"]
[White "Voros, Gellert"]
[Black "Jozefek, Michal"]
[Result "1/2-1/2"]
[ECO "B22"]
[WhiteElo "2154"]
[BlackElo "2201"]
[Annotator "NA"]
[PlyCount "41"]
[EventDate "2018.11.10"]
[EventType "team-tourn"]
[EventCountry "SVK"]
[SourceTitle "playchess.com"]
[Source "ChessBase"]
[SourceQuality "1"]
[WhiteTeam "Komarno"]
[BlackTeam "Osuske"]
[TimeControl "40/5400+30:1800+30"]

1. e4 {[%emt 0:00:00]} c5 {[%emt 0:00:00]} 2. c3 {[%emt 0:00:00]} Nf6 {[%emt 0:00:02]} 3. e5 {[%emt 0:00:00]} Nd5 {[%emt 0:00:01]} 4. d4 {[%emt 0:00:06]} cxd4 {[%emt 0:00:06]} 5. Nf3 {[%emt 0:00:11]} Nc6 {[%emt 0:00:08]} 6. Bc4 {[%emt 0:00:07]} Nb6 {[%emt 0:00:11]} 7. Bb3 {[%emt 0:00:09]} d6 {[%emt 0:01:00]} 8. exd6 {[%emt 0:06:51]} Qxd6 {[%emt 0:01:11]} 9. O-O {[%emt 0:00:20]} Bf5 {[%emt 0:08:23]} 10. Nxd4 {[%emt 0:00:53]} Nxd4 {[%emt 0:00:16]} 11. cxd4 {[%emt 0:00:19]} e6 {[%emt 0:01:15]} 12. Nc3 {[%emt 0:03:41]} Be7 {[%emt 0:03:34]} 13. Qf3 {[%emt 0:03:19]} Qd7 {[%emt 0:16:58]} 14. d5 {[%emt 0:21:53]} exd5 {[%emt 0:08:56]} 15. Nxd5 {[%emt 0:01:37]} Nxd5 {[%emt 0:00:51]} 16. Bxd5 {[%emt 0:03:59]} O-O {[%emt 0:01:45]} 17. Bxb7 {[%emt 0:06:20]} Bg4 {[%emt 0:11:14]} 18. Qc6 {[%emt 0:06:37]} Qxc6 {[%emt 0:06:59]} 19. Bxc6 {[%emt 0:00:27]} Rac8 {[%emt 0:00:08]} 20. Ba4 {[%emt 0:00:55]} Bf6 {[%emt 0:02:24]} 21. Be3 {[%emt 0:07:37]} 1/2-1/2

[Event "SVK ECo-C Extraliga 2018-19"]
[Site "Slovakia"]
[Date "2019.02.16"]
[Round "5"]
[White "Magat, Jozef"]
[Black "Jacko, Vladimir"]
[Result "0-1"]
[ECO "A45"]
[WhiteElo "2108"]
[BlackElo "2326"]
[Annotator "NA"]
[PlyCount "124"]
[EventDate "2018.11.10"]
[EventType "team-tourn"]
[EventCountry "SVK"]
[SourceTitle "playchess.com"]
[Source "ChessBase"]
[SourceQuality "1"]
[WhiteTeam "Dunajov"]
[BlackTeam "Prakovce"]
[TimeControl "40/5400+30:1800+30"]

1. d4 {[%emt 0:00:00]} Nf6 {[%emt 0:00:16]} 2. Bg5 {[%emt 0:00:00]} g6 {[%emt 0:00:47]} 3. Nc3 {[%emt 0:00:41]} Bg7 {[%emt 0:06:14]} 4. Nf3 {[%emt 0:02:14]} h6 {[%emt 0:00:39]} 5. Bf4 {[%emt 0:00:17]} d6 {[%emt 0:01:25]} 6. h3 {[%emt 0:00:51]} Nbd7 {[%emt 0:13:31]} 7. e3 {[%emt 0:01:05]} O-O {[%emt 0:00:19]} 8. Bc4 {[%emt 0:02:17]} c6 {[%emt 0:14:01]} 9. a4 {[%emt 0:02:32]} Kh8 {[%emt 0:07:27]} 10. O-O {[%emt 0:03:43]} Qe8 {[%emt 0:01:19]} 11. Bh2 {[%emt 0:05:03]} a5 {[%emt 0:04:28]} 12. Ne2 {[%emt 0:04:57]} e5 {[%emt 0:06:47]} 13. dxe5 {[%emt 0:04:20]} Nxe5 {[%emt 0:01:24]} 14. Nxe5 {[%emt 0:04:27]} dxe5 {[%emt 0:00:10]} 15. Nc3 {[%emt 0:02:14]} Qe7 {[%emt 0:02:32]} 16. Qe2 {[%emt 0:04:38]} Nd7 17. e4 {[%emt 0:05:45]} Qb4 {[%emt 0:09:45]} 18. Bb3 {[%emt 0:09:06]} Nc5 {[%emt 0:02:21]} 19. Ra3 {[%emt 0:05:02]} Be6 {[%emt 0:08:57]} 20. Na2 {[%emt 0:13:55]} Qb6 {[%emt 0:00:19]} 21. Bxe6 {[%emt 0:01:27]} Nxe6 {[%emt 0:00:02]} 22. Rb3 {[%emt 0:02:14]} Qa7 {[%emt 0:00:35]} 23. Rc3 {[%emt 0:06:24]} Rfd8 {[%emt 0:00:27]} 24. Rd1 {[%emt 0:02:13]} Qb6 {[%emt 0:02:43]} 25. b3 {[%emt 0:04:12]} Nd4 {[%emt 0:06:43]} 26. Qe1 {[%emt 0:03:42]} g5 {[%emt 0:01:00]} 27. Nc1 {[%emt 0:03:59]} Qb4 {[%emt 0:00:46]} 28. Kh1 {[%emt 0:02:24]} f6 {[%emt 0:04:56]} 29. Nd3 {[%emt 0:01:51]} Qb6 {[%emt 0:01:07]} 30. Bg1 {[%emt 0:00:44]} Bf8 {[%emt 0:01:27]} 31. f3 {[%emt 0:00:30]} c5 {[%emt 0:00:53]} 32. Nb2 {[%emt 0:01:02]} Qe6 {[%emt 0:00:52]} 33. Qf2 {[%emt 0:01:05]} Rd7 {[%emt 0:00:24]} 34. Nc4 {[%emt 0:00:21]} h5 {[%emt 0:01:01]} 35. Ne3 {[%emt 0:00:50]} Rh7 {[%emt 0:00:29]} 36. Bh2 {[%emt 0:00:30]} b6 {[%emt 0:00:14]} 37. Rcd3 {[%emt 0:00:43]} Re8 {[%emt 0:01:05]} 38. c4 {[%emt 0:00:45]} Bh6 {[%emt 0:00:40]} 39. Kg1 {[%emt 0:00:48]} Rg8 {[%emt 0:00:49]} 40. Kf1 {[%emt 0:00:34]} g4 {[%emt 0:00:25]} 41. fxg4 {[%emt 0:30:29]} Bxe3 {[%emt 0:06:50]} 42. Rxe3 {[%emt 0:00:00]} hxg4 {[%emt 0:00:04]} 43. Rdd3 {[%emt 0:00:00]} Rg5 {[%emt 0:13:53]} 44. Ke1 {[%emt 0:00:00]} Kg8 {[%emt 0:04:46]} 45. h4 {[%emt 0:00:00]} Rgh5 {[%emt 0:00:08]} 46. Bg3 {[%emt 0:00:00]} f5 {[%emt 0:02:29]} 47. exf5 {[%emt 0:00:00]} Rxf5 {[%emt 0:00:02]} 48. Qd2 {[%emt 0:00:00]} Rhf7 {[%emt 0:00:49]} 49. Rxd4 {[%emt 0:00:00]} cxd4 {[%emt 0:03:16]} 50. Qxd4 {[%emt 0:00:00]} exd4 {[%emt 0:01:34]} 51. Rxe6 {[%emt 0:00:00]} Rf1+ {[%emt 0:00:36]} 52. Ke2 {[%emt 0:00:00]} Rg1 {[%emt 0:00:28]} 53. Rg6+ {[%emt 0:01:30]} Kh7 {[%emt 0:00:15]} 54. Rxg4 {[%emt 0:00:34]} Rxg2+ {[%emt 0:00:02]} 55. Kd3 {[%emt 0:03:51]} Rf3+ {[%emt 0:00:04]} 56. Kxd4 {[%emt 0:00:12]} Rgxg3 {[%emt 0:00:06]} 57. Re4 {[%emt 0:00:39]} Rd3+ {[%emt 0:00:10]} 58. Ke5 {[%emt 0:00:11]} Rge3 {[%emt 0:00:02]} 59. c5 {[%emt 0:00:26]} bxc5 {[%emt 0:00:13]} 60. Rxe3 {[%emt 0:00:38]} Rxe3+ {[%emt 0:00:02]} 61. Kd5 {[%emt 0:00:12]} Rxb3 {[%emt 0:00:15]} 62. Kxc5 {[%emt 0:00:05]} Kh6 {[%emt 0:00:08]} 0-1

[Event "SVK ECo-C Extraliga 2018-19"]
[Site "Slovakia"]
[Date "2019.02.16"]
[Round "5"]
[White "Kovacik, Emil"]
[Black "Pcola, Jaroslav"]
[Result "1-0"]
[ECO "B34"]
[WhiteElo "2073"]
[BlackElo "2103"]
[Annotator "NA"]
[PlyCount "37"]
[EventDate "2018.11.10"]
[EventType "team-tourn"]
[EventCountry "SVK"]
[SourceTitle "playchess.com"]
[Source "ChessBase"]
[SourceQuality "1"]
[WhiteTeam "Dubnica"]
[BlackTeam "Snina"]
[TimeControl "40/5400+30:1800+30"]

1. e4 {[%emt 0:00:00]} c5 {[%emt 0:00:00]} 2. Nf3 {[%emt 0:00:00]} Nc6 {[%emt 0:00:07]} 3. d4 {[%emt 0:00:15]} cxd4 {[%emt 0:00:45]} 4. Nxd4 {[%emt 0:00:34]} g6 {[%emt 0:01:22]} 5. Nc3 {[%emt 0:01:45]} Bg7 {[%emt 0:01:48]} 6. Be3 {[%emt 0:00:18]} Nf6 {[%emt 0:01:13]} 7. Nxc6 {[%emt 0:02:15]} bxc6 {[%emt 0:01:39]} 8. e5 {[%emt 0:00:37]} Ng8 {[%emt 0:00:48]} 9. Bd4 {[%emt 0:01:56]} Nh6 {[%emt 0:14:47]} 10. e6 {[%emt 0:00:30]} f6 {[%emt 0:01:11]} 11. exd7+ {[%emt 0:01:02]} Qxd7 {[%emt 0:00:13]} 12. Bc4 {[%emt 0:00:42]} Nf7 {[%emt 0:05:21]} 13. Bc5 {[%emt 0:06:34]} Qf5 {[%emt 0:09:19]} 14. Qd4 {[%emt 0:05:27]} O-O {[%emt 0:08:48]} 15. O-O-O {[%emt 0:04:59]} e5 {[%emt 0:12:14]} 16. Qd3 {[%emt 0:01:30]} Re8 {[%emt 0:06:29]} 17. Qxf5 {[%emt 0:01:01]} Bxf5 {[%emt 0:00:33]} 18. Rd6 {[%emt 0:01:10]} Kh8 {[%emt 0:05:25]} 19. Bxf7 {[%emt 0:02:32]} 1-0

[Event "SVK ECo-C Extraliga 2018-19"]
[Site "Slovakia"]
[Date "2019.02.16"]
[Round "5.2"]
[White "Petenyi, Tamas"]
[Black "Repka, Christopher"]
[Result "1/2-1/2"]
[ECO "C77"]
[WhiteElo "2427"]
[BlackElo "2481"]
[Annotator "ChessBase"]
[PlyCount "81"]
[EventDate "2018.11.10"]
[EventType "team-tourn"]
[EventCountry "SVK"]
[SourceTitle "playchess.com"]
[Source "ChessBase"]
[SourceQuality "1"]
[WhiteTeam "Streda"]
[BlackTeam "Zilina"]
[TimeControl "40/5400+30:1800+30"]

1. e4 {[%emt 0:00:00]} e5 {[%emt 0:00:00]} 2. Nf3 {[%emt 0:00:06]} Nc6 {[%emt 0:00:00]} 3. Bb5 {[%emt 0:00:20]} a6 {[%emt 0:00:00]} 4. Ba4 {[%emt 0:00:10]} Nf6 {[%emt 0:00:00]} 5. d3 {[%emt 0:00:40]} d6 {[%emt 0:00:34]} 6. c3 {[%emt 0:00:24]} Be7 {[%emt 0:00:17]} 7. Nbd2 {[%emt 0:01:12]} O-O {[%emt 0:00:06]} 8. O-O {[%emt 0:00:26]} Bg4 {[%emt 0:00:04]} 9. Re1 {[%emt 0:01:59]} Nd7 {[%emt 0:00:07]} 10. h3 {[%emt 0:01:37]} Bh5 {[%emt 0:01:10]} 11. Nf1 {[%emt 0:02:22]} Nc5 {[%emt 0:02:51]} 12. Bxc6 {[%emt 0:05:03]} bxc6 {[%emt 0:00:05]} 13. Ng3 {[%emt 0:00:06]} Bg6 {[%emt 0:00:22]} 14. d4 {[%emt 0:01:12]} exd4 {[%emt 0:01:53]} 15. Nxd4 {[%emt 0:05:07]} Qd7 {[%emt 0:00:45]} 16. Qf3 {[%emt 0:04:49]} d5 {[%emt 0:05:58]} 17. exd5 {[%emt 0:05:12]} cxd5 {[%emt 0:05:40]} 18. Ndf5 {[%emt 0:02:33]} Bf6 {[%emt 0:00:05]} 19. Nh6+ {[%emt 0:02:26]} Kh8 {[%emt 0:00:45]} 20. Ng4 {[%emt 0:00:18]} Bh4 {[%emt 0:07:37]} 21. Ne5 {[%emt 0:01:33]} Qe6 {[%emt 0:00:05]} 22. Nxg6+ {[%emt 0:08:31]} Qxg6 {[%emt 0:11:28]} 23. Nf5 {[%emt 0:01:29]} Bf6 {[%emt 0:00:41]} 24. Qxd5 {[%emt 0:01:54]} Na4 {[%emt 0:00:06]} 25. Ng3 {[%emt 0:04:03]} Rab8 {[%emt 0:18:38]} 26. Qc6 {[%emt 0:14:14]} Nxb2 {[%emt 0:00:07]} 27. Bxb2 {[%emt 0:00:16]} Rxb2 {[%emt 0:00:04]} 28. Re8 {[%emt 0:02:47]} Rb1+ {[%emt 0:03:32]} 29. Rxb1 {[%emt 0:04:26]} Qxb1+ {[%emt 0:00:13]} 30. Kh2 {[%emt 0:00:08]} Kg8 {[%emt 0:00:04]} 31. Rxf8+ {[%emt 0:07:41]} Kxf8 {[%emt 0:00:07]} 32. Qxc7 {[%emt 0:01:50]} g6 {[%emt 0:02:10]} 33. Qc8+ {[%emt 0:01:40]} Kg7 {[%emt 0:00:29]} 34. Qxa6 {[%emt 0:00:31]} Bxc3 {[%emt 0:00:05]} 35. Qc4 {[%emt 0:03:23]} Qc1 {[%emt 0:14:01]} 36. a4 {[%emt 0:02:04]} h5 {[%emt 0:01:59]} 37. h4 {[%emt 0:01:31]} Qe1 {[%emt 0:02:12]} 38. Qe2 {[%emt 0:06:54]} Qa1 {[%emt 0:00:36]} 39. Ne4 {[%emt 0:03:46]} Be5+ {[%emt 0:01:30]} 40. g3 {[%emt 0:00:05]} Qxa4 {[%emt 0:00:19]} 41. Kg2 {[%emt 0:30:12]} 1/2-1/2

[Event "SVK ECo-C Extraliga 2018-19"]
[Site "Slovakia"]
[Date "2019.02.16"]
[Round "5.3"]
[White "Kociscak, Jiri"]
[Black "Nemeth, Miklos"]
[Result "0-1"]
[ECO "A40"]
[WhiteElo "2501"]
[BlackElo "2484"]
[Annotator "ChessBase"]
[PlyCount "108"]
[EventDate "2018.11.10"]
[EventType "team-tourn"]
[EventCountry "SVK"]
[SourceTitle "playchess.com"]
[Source "ChessBase"]
[SourceQuality "1"]
[WhiteTeam "Zilina"]
[BlackTeam "Streda"]
[TimeControl "40/5400+30:1800+30"]

1. d4 {[%emt 0:01:08]} Nf6 {[%emt 0:00:00]} 2. c4 {[%emt 0:00:04]} e6 {[%emt 0:00:00]} 3. g3 {[%emt 0:00:06]} d5 {[%emt 0:00:20]} 4. Nf3 {[%emt 0:00:06]} Bb4+ {[%emt 0:00:35]} 5. Bd2 {[%emt 0:00:06]} Be7 {[%emt 0:00:13]} 6. Bg2 {[%emt 0:00:07]} O-O {[%emt 0:00:16]} 7. O-O {[%emt 0:00:09]} c6 {[%emt 0:00:50]} 8. Qc2 {[%emt 0:00:25]} Nbd7 {[%emt 0:00:36]} 9. Bf4 {[%emt 0:01:41]} b6 {[%emt 0:01:17]} 10. Ne5 {[%emt 0:13:57]} Nxe5 {[%emt 0:06:35]} 11. dxe5 {[%emt 0:00:18]} Nd7 {[%emt 0:00:10]} 12. Rd1 {[%emt 0:00:38]} g5 {[%emt 0:13:22]} 13. Be3 {[%emt 0:09:00]} Nxe5 {[%emt 0:04:40]} 14. cxd5 {[%emt 0:00:58]} cxd5 {[%emt 0:00:43]} 15. Bd4 {[%emt 0:00:19]} Ng6 {[%emt 0:07:32]} 16. Bc3 {[%emt 0:13:17]} Qc7 {[%emt 0:04:53]} 17. e4 {[%emt 0:10:10]} dxe4 {[%emt 0:05:09]} 18. Qxe4 {[%emt 0:00:06]} Rb8 {[%emt 0:00:39]} 19. Qe3 {[%emt 0:03:20]} e5 {[%emt 0:13:20]} 20. Nd2 {[%emt 0:01:58]} Bg4 {[%emt 0:08:03]} 21. Nf3 {[%emt 0:04:08]} f6 {[%emt 0:01:18]} 22. h3 {[%emt 0:00:40]} Bc5 {[%emt 0:02:55]} 23. Qe2 {[%emt 0:01:21]} Be6 {[%emt 0:00:30]} 24. Nh2 {[%emt 0:07:22]} Rbd8 {[%emt 0:03:30]} 25. Ng4 {[%emt 0:00:26]} Kg7 {[%emt 0:01:21]} 26. Be4 {[%emt 0:12:57]} Rxd1+ {[%emt 0:04:33]} 27. Rxd1 {[%emt 0:00:05]} Rd8 {[%emt 0:01:46]} 28. Rc1 {[%emt 0:03:05]} Qf7 {[%emt 0:08:09]} 29. a3 {[%emt 0:06:01]} Bd4 {[%emt 0:02:56]} 30. Bxd4 {[%emt 0:01:22]} exd4 {[%emt 0:00:54]} 31. Bd3 {[%emt 0:02:22]} Bxg4 {[%emt 0:04:03]} 32. hxg4 {[%emt 0:00:32]} Ne5 {[%emt 0:00:05]} 33. Rd1 {[%emt 0:01:19]} Qd5 {[%emt 0:02:42]} 34. Be4 {[%emt 0:00:36]} Qb3 {[%emt 0:00:26]} 35. Bd3 {[%emt 0:01:46]} Re8 {[%emt 0:01:09]} 36. Rd2 {[%emt 0:00:33]} Qd5 {[%emt 0:00:40]} 37. Be4 {[%emt 0:00:08]} Qd6 {[%emt 0:00:43]} 38. Kg2 {[%emt 0:01:55]} Rd8 {[%emt 0:00:40]} 39. Bd3 {[%emt 0:00:34]} Qc6+ {[%emt 0:00:17]} 40. Be4 {[%emt 0:00:19]} Qd7 {[%emt 0:01:10]} 41. Bf5 {[%emt 0:31:02]} Qd5+ {[%emt 0:01:58]} 42. Be4 {[%emt 0:00:00]} Qc4 {[%emt 0:03:15]} 43. Bd3 {[%emt 0:00:00]} Qc5 {[%emt 0:02:09]} 44. Rd1 {[%emt 0:00:00]} Rd7 {[%emt 0:02:03]} 45. b4 {[%emt 0:00:00]} Qd5+ {[%emt 0:04:27]} 46. Be4 {[%emt 0:00:00]} Qb3 {[%emt 0:01:12]} 47. Rh1 {[%emt 0:00:00]} h6 {[%emt 0:04:13]} 48. Bf5 {[%emt 0:00:00]} Qd5+ {[%emt 0:04:48]} 49. Be4 {[%emt 0:00:00]} d3 {[%emt 0:00:56]} 50. Qe3 {[%emt 0:00:00]} Qd4 {[%emt 0:00:50]} 51. Bf5 {[%emt 0:00:00]} Qxe3 {[%emt 0:00:34]} 52. fxe3 {[%emt 0:00:00]} Rc7 {[%emt 0:00:17]} 53. Rd1 {[%emt 0:00:00]} Rc3 {[%emt 0:00:50]} 54. a4 {[%emt 0:00:00]} Kf8 {[%emt 0:00:25]} 0-1